fUST/lending_fUST_20240830
["ID","MTS","AMOUNT","RATE_DAILY","PERIOD"]
[336588736,1724959854781,-501.54095349,0.00019726,2]
[336588737,1724959854790,-1462.75,0.00019726,2]
[336588738,1724959854799,-10000.0,0.00019726,2]
[336588739,1724959854808,-7676.07,0.00019726,2]
[336588740,1724959854818,-151.0,0.00019726,2]
[336588741,1724959854827,-500.0,0.00019726,2]
[336588742,1724959854836,-500.0,0.00019726,2]
[336588743,1724959854845,-500.0,0.00019726,2]
[336588744,1724959854854,-535.44,0.00019726,2]
[336588745,1724959854864,-151.0,0.00019726,2]
[336588746,1724959854875,-636.36,0.00019726,2]
[336588747,1724959854884,-500.0,0.00019726,2]
[336588748,1724959854894,-500.0,0.00019726,2]
[336588749,1724959854903,-500.0,0.00019726,2]
[336588750,1724959854913,-1215.51,0.00019726,2]
[336588751,1724959854923,-500.0,0.00019726,2]
[336588752,1724959854932,-500.0,0.00019726,2]
[336588753,1724959854942,-500.0,0.00019726,2]
[336588754,1724959854952,-1345.15,0.00019726,2]
[336588755,1724959854962,-2499.8,0.00019726,2]
[336588756,1724959854972,-1920.4,0.00019726,2]
[336588757,1724959854981,-500.0,0.00019726,2]
[336588758,1724959854990,-2341.41,0.00019726,2]
[336588759,1724959855000,-500.0,0.00019726,2]
[336588760,1724959855009,-2245.67,0.00019726,2]
[336588761,1724959855020,-3653.88,0.00019726,2]
[336588762,1724959855030,-500.0,0.00019726,2]
[336588763,1724959855039,-500.0,0.00019726,2]
[336588764,1724959855048,-500.0,0.00019726,2]
[336588765,1724959855058,-500.0,0.00019726,2]
[336588766,1724959855068,-1513.12,0.00019726,2]
[336588767,1724959855079,-500.0,0.00019726,2]
[336588768,1724959855088,-500.0,0.00019726,2]
[336588769,1724959855098,-500.0,0.00019726,2]
[336588770,1724959855107,-5015.805609,0.00019726,2]
[336588771,1724959855116,-1562.151045,0.00019726,2]
[336588772,1724959855126,-7125.4,0.00019726,2]
[336588773,1724959855135,-687.9,0.00019726,2]
[336588774,1724959855144,-500.0,0.00019726,2]
[336588775,1724959855154,-2432.83,0.00019726,2]
[336588776,1724959855163,-500.0,0.00019726,2]
[336588777,1724959855172,-5015.805609,0.00019726,2]
[336588778,1724959855183,-500.0,0.00019726,2]
[336588779,1724959855193,-1562.151045,0.00019726,2]
[336588780,1724959855202,-1735.37,0.00019726,2]
[336588781,1724959855286,-500.0,0.00019726,2]
[336588782,1724959855296,-500.0,0.00019726,2]
[336588783,1724959855306,-500.0,0.00019726,2]
[336588784,1724959855316,-198.948511,0.00019726,2]
[336588785,1724959855325,-500.0,0.00019726,2]
[336588786,1724959855335,-1860.24,0.00019726,2]
[336588787,1724959855345,-151.0,0.00019726,2]
[336588788,1724959855354,-500.0,0.00019726,2]
[336588789,1724959855364,-1823.65,0.00019726,2]
[336588790,1724959855373,-501.76160786,0.00019726,2]
[336588791,1724959855383,-198.948511,0.00019726,2]
[336588792,1724959855392,-151.0,0.00019726,2]
[336588793,1724959855401,-500.0,0.00019726,2]
[336588794,1724959855410,-500.0,0.00019726,2]
[336588795,1724959855420,-151.0,0.00019726,2]
[336588796,1724959855429,-500.0,0.00019726,2]
[336588797,1724959855439,-500.0,0.00019726,2]
[336588798,1724959855448,-1687.53,0.00019726,2]
[336588799,1724959855458,-640.19,0.00019726,2]
[336588800,1724959855470,-1798.968384,0.00019726,2]
[336588801,1724959855479,-500.0,0.00019726,2]
[336588802,1724959855489,-1798.968384,0.00019726,2]
[336588803,1724959855498,-2819.92,0.00019726,2]
[336588804,1724959855507,-692.81,0.00019726,2]
[336588805,1724959855518,-7069.08,0.00019726,2]
[336588806,1724959855528,-500.0,0.00019726,2]
[336588807,1724959855537,-500.0,0.00019726,2]
[336588808,1724959855546,-7852.79,0.00019726,2]
[336588809,1724959855556,-500.0,0.00019726,2]
[336588810,1724959855565,-500.173075,0.00019726,2]
[336588811,1724959855575,-1778.75,0.00019726,2]
[336588812,1724959855584,-239.92305182,0.00019726,2]
[336588813,1724959855594,-500.0,0.00019726,2]
[336588814,1724959855604,-151.0,0.00019726,2]
[336588815,1724959855613,-500.0,0.00019726,2]
[336588816,1724959855631,-151.0,0.00019726,2]
[336588817,1724959855645,-5307.89,0.00019726,2]
[336588818,1724959855656,-500.173075,0.00019726,2]
[336588819,1724959855668,-151.0,0.00019726,2]
[336588820,1724959855679,-500.0,0.00019726,2]
[336588821,1724959855689,-563.92,0.00019726,2]
[336588822,1724959855701,-563.48,0.00019726,2]
[336588823,1724959855711,-500.0,0.00019726,2]
[336588824,1724959855722,-4411.53,0.00019726,2]
[336588825,1724959855732,-500.0,0.00019726,2]
[336588826,1724959855742,-810.09,0.00019726,2]
[336588827,1724959855752,-500.0,0.00019726,2]
[336588828,1724959855762,-500.0,0.00019726,2]
[336588829,1724959855774,-500.0,0.00019726,2]
[336588830,1724959855784,-500.0,0.00019726,2]
[336588831,1724959855794,-500.0,0.00019726,2]
[336588832,1724959855804,-2550.65,0.000198,2]
[336588833,1724959855815,-150.112233,0.000198,2]
[336588834,1724959855825,-150.112233,0.000198,2]
[336588835,1724959855835,-172.370213,0.00019857,2]
[336588836,1724959855845,-348.803016,0.00019857,2]
[336588837,1724959855854,-293.52158,0.00019857,2]
[336588838,1724959855864,-278.193651,0.00019857,2]
[336588839,1724959855874,-265.548571,0.00019857,2]
[336588840,1724959855884,-387.60637,0.00019857,2]
[336588841,1724959855894,-403.168223,0.00019857,2]
[336588842,1724959855904,-172.807702,0.00019857,2]
[336588843,1724959855914,-173.605556,0.00019857,2]
[336588844,1724959855925,-172.370212,0.00019857,2]
[336588845,1724959855935,-173.605557,0.00019857,2]
[336588846,1724959855945,-172.370212,0.00019857,2]
[336588847,1724959855955,-174.13746,0.00019857,2]
[336588848,1724959855966,-552.28672802,0.000199,2]
[336588849,1724959855976,-150.112233,0.000199,2]
[336588850,1724959855987,-150.112233,0.000199,2]
[336588851,1724959855997,-600.0,0.00019989,2]
[336588852,1724959856007,-23633.03262479,0.0001999,2]
[336588853,1724959856016,-151.0,0.0001999,2]
[336588854,1724959856027,-151.0,0.0001999,2]
[336588855,1724959856037,-151.0,0.0001999,2]
[336588856,1724959856047,-25044.80218525,0.0002,5]
[336588857,1724959856057,-4456.24393573,0.0002,2]
[336588858,1724959856068,-47920.91233752,0.0002,2]
[336588859,1724959856080,-34317.0193407,0.0002,2]
[336588860,1724959856089,-151.0,0.0002,2]
[336588861,1724959856099,-500.0,0.0002,2]
[336588862,1724959856109,-500.0,0.0002,2]
[336588863,1724959856119,-500.0,0.0002,2]
[336588864,1724959856129,-500.0,0.0002,2]
[336588865,1724959856139,-500.0,0.0002,2]
[336588866,1724959856149,-500.0,0.0002,2]
[336588867,1724959856159,-500.0,0.0002,2]
[336588868,1724959856170,-500.0,0.0002,2]
[336588869,1724959856180,-500.0,0.0002,2]
[336588870,1724959856193,-151.0,0.0002,2]
[336588871,1724959856203,-151.0,0.0002,2]
[336588872,1724959856213,-151.0,0.0002,2]
[336588873,1724959856223,-151.0,0.0002,2]
[336588874,1724959856235,-190.085462,0.0002,2]
[336588875,1724959856245,-491.30048947,0.0002,2]
[336588876,1724959856257,-200.0,0.0002,2]
[336588877,1724959856271,-500.0,0.0002,2]
[336588878,1724959856282,-500.0,0.0002,2]
[336588879,1724959856293,-500.0,0.0002,2]
[336588880,1724959856303,-500.0,0.0002,2]
[336588881,1724959856313,-500.0,0.0002,2]
[336588882,1724959856324,-151.44718638,0.0002,2]
[336588883,1724959856334,-500.0,0.0002,2]
[336588884,1724959856344,-500.0,0.0002,2]
[336588885,1724959856354,-500.0,0.0002,2]
[336588886,1724959856364,-500.0,0.0002,2]
[336588887,1724959856374,-500.0,0.0002,2]
[336588888,1724959856384,-500.0,0.0002,2]
[336588889,1724959856394,-500.0,0.0002,2]
[336588890,1724959856404,-506.39180653,0.0002,2]
[336588891,1724959856414,-500.0,0.0002,2]
[336588892,1724959856424,-500.0,0.0002,2]
[336588893,1724959856434,-151.0,0.0002,2]
[336588894,1724959856445,-500.0,0.0002,2]
[336588895,1724959856455,-972.15,0.0002,2]
[336588896,1724959856466,-500.0,0.0002,2]
[336588897,1724959856476,-500.0,0.0002,2]
[336588898,1724959856486,-500.0,0.0002,2]
[336588899,1724959856496,-151.929367,0.0002,2]
[336588900,1724959856513,-500.0,0.0002,2]
[336588901,1724959856525,-500.0,0.0002,2]
[336588902,1724959856534,-500.0,0.0002,2]
[336588903,1724959856545,-500.0,0.0002,2]
[336588904,1724959856556,-568.31,0.0002,2]
[336588905,1724959856566,-500.0,0.0002,2]
[336588906,1724959856577,-500.0,0.0002,2]
[336588907,1724959856586,-500.0,0.0002,2]
[336588908,1724959856596,-500.0,0.0002,2]
[336588909,1724959856607,-500.0,0.0002,2]
[336588910,1724959856619,-886.8,0.0002,2]
[336588911,1724959856629,-500.0,0.0002,2]
[336588912,1724959856641,-591.56,0.0002,2]
[336588913,1724959856652,-151.0,0.0002,2]
[336588914,1724959856665,-500.0,0.0002,2]
[336588915,1724959856790,-152.528178,0.0002,2]
[336588916,1724959856800,-500.0,0.0002,2]
[336588917,1724959856811,-506.56978484,0.0002,2]
[336588918,1724959856820,-151.0,0.0002,2]
[336588919,1724959856830,-246.841308,0.0002,2]
[336588920,1724959856840,-500.0,0.0002,2]
[336588921,1724959856850,-246.841308,0.0002,2]
[336588922,1724959856861,-572.09,0.0002,2]
[336588923,1724959856875,-507.64,0.0002,2]
[336588924,1724959856886,-576.61,0.0002,2]
[336588925,1724959856896,-986.6,0.0002,2]
[336588926,1724959856907,-500.0,0.0002,2]
[336588927,1724959856918,-151.0,0.0002,2]
[336588928,1724959856928,-254.171322,0.0002,2]
[336588929,1724959856938,-500.0,0.0002,2]
[336588930,1724959856948,-500.0,0.0002,2]
[336588931,1724959856958,-500.0,0.0002,2]
[336588932,1724959856968,-508.9992205,0.0002,2]
[336588933,1724959856979,-668.17,0.0002,2]
[336588934,1724959856989,-500.0,0.0002,2]
[336588935,1724959857000,-1355.56,0.0002,2]
[336588936,1724959857011,-500.0,0.0002,2]
[336588937,1724959857025,-776.41,0.0002,2]
[336588938,1724959857035,-500.0,0.0002,2]
[336588939,1724959857044,-829.52,0.0002,2]
[336588940,1724959857055,-579.36,0.0002,2]
[336588941,1724959857068,-500.0,0.0002,2]
[336588942,1724959857080,-151.0,0.0002,2]
[336588943,1724959857090,-605.81,0.0002,2]
[336588944,1724959857100,-500.0,0.0002,2]
[336588945,1724959857111,-491.75509989,0.0002,2]
[336588946,1724959857121,-500.0,0.0002,2]
[336588947,1724959857130,-836.77,0.0002,2]
[336588948,1724959857140,-151.0,0.0002,2]
[336588949,1724959857150,-500.0,0.0002,2]
[336588950,1724959857160,-151.0,0.0002,2]
[336588951,1724959857172,-500.0,0.0002,2]
[336588952,1724959857185,-500.0,0.0002,2]
[336588953,1724959857204,-314.91908794,0.0002,2]
[336588954,1724959857214,-584.54,0.0002,2]
[336588955,1724959857226,-500.7,0.0002,2]
[336588956,1724959857235,-151.0,0.0002,2]
[336588957,1724959857245,-151.0,0.0002,2]
[336588958,1724959857256,-500.0,0.0002,2]
[336588959,1724959857266,-500.0,0.0002,2]
[336588960,1724959857277,-500.0,0.0002,2]
[336588961,1724959857286,-500.0,0.0002,2]
[336588962,1724959857296,-231.491231,0.0002,2]
[336588963,1724959857306,-231.491231,0.0002,2]
[336588964,1724959857318,-151.0,0.0002,2]
[336588965,1724959857328,-500.0,0.0002,2]
[336588966,1724959857338,-1704.24,0.0002,2]
[336588967,1724959857348,-500.0,0.0002,2]
[336588968,1724959857358,-151.0,0.0002,2]
[336588969,1724959857368,-500.0,0.0002,2]
[336588970,1724959857377,-500.0,0.0002,2]
[336588971,1724959857388,-500.0,0.0002,2]
[336588972,1724959857397,-500.0,0.0002,2]
[336588973,1724959857407,-500.0,0.0002,2]
[336588974,1724959857417,-500.0,0.0002,2]
[336588975,1724959857427,-500.0,0.0002,2]
[336588976,1724959857437,-500.0,0.0002,2]
[336588977,1724959857447,-1674.51,0.0002,2]
[336588978,1724959857457,-500.0,0.0002,2]
[336588979,1724959857467,-151.0,0.0002,2]
[336588980,1724959857477,-500.0,0.0002,2]
[336588981,1724959857486,-151.0,0.0002,2]
[336588982,1724959857496,-500.0,0.0002,2]
[336588983,1724959857506,-151.0,0.0002,2]
[336588984,1724959857515,-500.0,0.0002,2]
[336588985,1724959857525,-500.0,0.0002,2]
[336588986,1724959857534,-314.328439,0.0002,2]
[336588987,1724959857544,-500.0,0.0002,2]
[336588988,1724959857555,-2011.91,0.0002,2]
[336588989,1724959857564,-500.0,0.0002,2]
[336588990,1724959857574,-1578.86,0.0002,2]
[336588991,1724959857584,-5672.749772,0.0002,2]
[336588992,1724959857594,-500.0,0.0002,2]
[336588993,1724959857605,-5672.749772,0.0002,2]
[336588994,1724959857614,-500.0,0.0002,2]
[336588995,1724959857624,-500.0,0.0002,2]
[336588996,1724959857635,-500.0,0.0002,2]
[336588997,1724959857646,-5094.968618,0.0002,2]
[336588998,1724959857656,-500.0,0.0002,2]
[336588999,1724959857666,-500.0,0.0002,2]
[336589000,1724959857676,-5094.968618,0.0002,2]
[336589001,1724959857686,-500.0,0.0002,2]
[336589002,1724959857696,-1943.11,0.0002,2]
[336589003,1724959857706,-500.0,0.0002,2]
[336589004,1724959857716,-4403.86,0.0002,2]
[336589005,1724959857726,-500.0,0.0002,2]
[336589006,1724959857736,-3148.43,0.0002,2]
[336589007,1724959857745,-5511.193121,0.0002,2]
[336589008,1724959857755,-5511.193121,0.0002,2]
[336589009,1724959857765,-500.0,0.0002,2]
[336589010,1724959857776,-151.0,0.0002,2]
[336589011,1724959857786,-1722.01,0.0002,2]
[336589012,1724959857807,-2200.88,0.0002,2]
[336589013,1724959857818,-10005.23,0.0002,2]
[336589014,1724959857829,-1758.17,0.0002,2]
[336589015,1724959857839,-500.0,0.0002,2]
[336589016,1724959857850,-500.0,0.0002,2]
[336589017,1724959857862,-151.0,0.0002,2]
[336589018,1724959857873,-151.0,0.0002,2]
[336589019,1724959857883,-4039.87,0.0002,2]
[336589020,1724959857893,-2874.84,0.0002,2]
[336589021,1724959857903,-6955.28,0.0002,2]
[336589022,1724959857914,-151.0,0.0002,2]
[336589023,1724959857924,-8645.87,0.0002,2]
[336589024,1724959857935,-7860.36,0.0002,2]
[336589025,1724959857945,-324.68201831,0.0002,2]
[336589026,1724959857957,-500.0,0.0002,2]
[336589027,1724959857967,-3052.09,0.0002,2]
[336589028,1724959857977,-273.471213,0.0002,2]
[336589029,1724959857987,-526.41,0.0002,2]
[336589030,1724959857997,-273.471213,0.0002,2]
[336589031,1724959858007,-1992.41,0.0002,2]
[336589032,1724959858016,-500.0,0.0002,2]
[336589033,1724959858027,-2516.329952,0.0002,2]
[336589034,1724959858036,-2047.97,0.0002,2]
[336589035,1724959858046,-500.0,0.0002,2]
[336589036,1724959858055,-1568.45,0.0002,2]
[336589037,1724959858066,-1778.974224,0.0002,2]
[336589038,1724959858192,-2516.329952,0.0002,2]
[336589039,1724959858203,-1562.05,0.0002,2]
[336589040,1724959858214,-500.0,0.0002,2]
[336589041,1724959858227,-500.0,0.0002,2]
[336589042,1724959858236,-1778.974224,0.0002,2]
[336589043,1724959858245,-500.0,0.0002,2]
[336589044,1724959858256,-643.22852352,0.0002,2]
[336589045,1724959858270,-500.0,0.0002,2]
[336589046,1724959858280,-151.0,0.0002,2]
[336589047,1724959858290,-151.0,0.0002,2]
[336589048,1724959858300,-353.96583244,0.0002,2]
[336589049,1724959858309,-500.0,0.0002,2]
[336589050,1724959858318,-283.389656,0.0002,2]
[336589051,1724959858327,-283.389656,0.0002,2]
[336589052,1724959858337,-2122.12,0.0002,2]
[336589053,1724959858347,-296.40110232,0.0002,2]
[336589054,1724959858356,-10000.0,0.0002,2]
[336589055,1724959858366,-864.74,0.0002,2]
[336589056,1724959858375,-283.389656,0.0002,2]
[336589057,1724959858385,-283.389656,0.0002,2]
[336589058,1724959858394,-10000.0,0.0002,2]
[336589059,1724959858404,-727.36,0.0002,2]
[336589060,1724959858414,-500.0,0.0002,2]
[336589061,1724959858423,-10000.0,0.0002,2]
[336589062,1724959858432,-3582.04,0.0002,2]
[336589063,1724959858442,-10000.0,0.0002,2]
[336589064,1724959858451,-10000.0,0.0002,2]
[336589065,1724959858460,-10000.0,0.0002,2]
[336589066,1724959858469,-500.0,0.0002,2]
[336589067,1724959858479,-1462.75,0.0002,2]
[336589068,1724959858488,-10000.0,0.0002,2]
[336589069,1724959858498,-10000.0,0.0002,2]
[336589070,1724959858509,-7676.07,0.0002,2]
[336589071,1724959858518,-151.0,0.0002,2]
[336589072,1724959858527,-500.0,0.0002,2]
[336589073,1724959858536,-500.0,0.0002,2]
[336589074,1724959858546,-500.0,0.0002,2]
[336589075,1724959858556,-535.44,0.0002,2]
[336589076,1724959858565,-151.0,0.0002,2]
[336589077,1724959858574,-636.36,0.0002,2]
[336589078,1724959858585,-500.0,0.0002,2]
[336589079,1724959858595,-500.0,0.0002,2]
[336589080,1724959858605,-155.38212364,0.0002,2]
[336589081,1724959858615,-624.92063107,0.0002,12]
[336589082,1724959858625,-500.0,0.0002,2]
[336589083,1724959858635,-1215.51,0.0002,2]
[336589084,1724959858645,-500.0,0.0002,2]
[336589085,1724959858656,-500.0,0.0002,2]
[336589086,1724959858666,-1345.15,0.0002,2]
[336589087,1724959858676,-2499.8,0.0002,2]
[336589088,1724959858685,-1920.4,0.0002,2]
[336589089,1724959858695,-500.0,0.0002,2]
[336589090,1724959858704,-2341.41,0.0002,2]
[336589091,1724959858714,-500.0,0.0002,2]
[336589092,1724959858724,-2245.67,0.0002,2]
[336589093,1724959858733,-3653.88,0.0002,2]
[336589094,1724959858758,-500.0,0.0002,2]
[336589095,1724959858775,-500.0,0.0002,2]
[336589096,1724959858796,-500.0,0.0002,2]
[336589097,1724959858816,-1513.12,0.0002,2]
[336589098,1724959858839,-500.0,0.0002,2]
[336589099,1724959858861,-500.0,0.0002,2]
[336589100,1724959858877,-5015.805609,0.0002,2]
[336589101,1724959858895,-5015.805609,0.0002,2]
[336589102,1724959858913,-1562.151045,0.0002,2]
[336589103,1724959858935,-7125.4,0.0002,2]
[336589104,1724959858947,-687.9,0.0002,2]
[336589105,1724959858965,-500.0,0.0002,2]
[336589106,1724959858980,-2432.83,0.0002,2]
[336589107,1724959858999,-500.0,0.0002,2]
[336589108,1724959859019,-5015.805609,0.0002,2]
[336589109,1724959859037,-500.0,0.0002,2]
[336589110,1724959859053,-5015.805609,0.0002,2]
[336589111,1724959859067,-1562.151045,0.0002,2]
[336589112,1724959859084,-1735.37,0.0002,2]
[336589113,1724959859100,-500.0,0.0002,2]
[336589114,1724959859115,-500.0,0.0002,2]
[336589115,1724959859130,-198.948511,0.0002,2]
[336589116,1724959859144,-500.0,0.0002,2]
[336589117,1724959859159,-1860.24,0.0002,2]
[336589118,1724959859173,-500.0,0.0002,2]
[336589119,1724959859191,-1823.65,0.0002,2]
[336589120,1724959859206,-198.948511,0.0002,2]
[336589121,1724959859220,-151.0,0.0002,2]
[336589122,1724959859241,-500.0,0.0002,2]
[336589123,1724959859259,-281.986526,0.0002,2]
[336589124,1724959859278,-500.0,0.0002,2]
[336589125,1724959859292,-500.0,0.0002,2]
[336589126,1724959859307,-1687.53,0.0002,2]
[336589127,1724959859323,-640.19,0.0002,2]
[336589128,1724959859339,-1798.968384,0.0002,2]
[336589129,1724959859353,-500.0,0.0002,2]
[336589130,1724959859368,-1798.968384,0.0002,2]
[336589131,1724959859383,-2819.92,0.0002,2]
[336589132,1724959859397,-692.81,0.0002,2]
[336589133,1724959859412,-7069.08,0.0002,2]
[336589134,1724959859427,-500.0,0.0002,2]
[336589135,1724959859443,-500.0,0.0002,2]
[336589136,1724959859459,-7852.79,0.0002,2]
[336589137,1724959859472,-500.0,0.0002,2]
[336589138,1724959859482,-1778.75,0.0002,2]
[336589139,1724959859491,-487.96168673,0.0002,2]
[336589140,1724959859501,-151.0,0.0002,2]
[336589141,1724959859511,-500.0,0.0002,2]
[336589142,1724959859521,-500.173075,0.0002,2]
[336589143,1724959859533,-151.0,0.0002,2]
[336589144,1724959859543,-500.173075,0.0002,2]
[336589145,1724959859552,-5307.89,0.0002,2]
[336589146,1724959859562,-500.173075,0.0002,2]
[336589147,1724959859572,-500.173075,0.0002,2]
[336589148,1724959859582,-179.443065,0.0002,2]
[336589149,1724959859592,-500.0,0.0002,2]
[336589150,1724959859602,-563.92,0.0002,2]
[336589151,1724959859787,-563.48,0.0002,2]
[336589152,1724959859803,-500.0,0.0002,2]
[336589153,1724959859814,-4411.53,0.0002,2]
[336589154,1724959859824,-500.0,0.0002,2]
[336589155,1724959859834,-810.09,0.0002,2]
[336589156,1724959859844,-500.0,0.0002,2]
[336589157,1724959859853,-500.0,0.0002,2]
[336589158,1724959859863,-500.0,0.0002,2]
[336589159,1724959859872,-500.0,0.0002,2]
[336589160,1724959859882,-500.0,0.0002,2]
[336589161,1724959859891,-500.0,0.00020021,2]
[336589162,1724959859901,-1000.0,0.00020021,2]
[336589163,1724959859911,-846.0420623,0.00020116,2]
[336589164,1724959859920,-150.0,0.00020215,2]
[336589165,1724959859929,-150.0,0.00020215,2]
[336589166,1724959859939,-150.1,0.00020215,2]
[336589167,1724959859948,-522.0,0.00020232,2]
[336589168,1724959859959,-151.064,0.00020232,2]
[336589169,1724959859970,-500.0,0.00020273,2]
[336589170,1724959859979,-204.86959323,0.00020273,2]
[336589171,1724959859989,-500.0,0.00020273,2]
[336589172,1724959859998,-500.0,0.00020273,2]
[336589173,1724959860008,-262.44395069,0.00020273,2]
[336589174,1724959860018,-500.0,0.00020273,2]
[336589175,1724959860030,-500.0,0.00020273,2]
[336589176,1724959860045,-500.0,0.00020273,2]
[336589177,1724959860054,-500.0,0.00020273,2]
[336589178,1724959860064,-151.0,0.00020273,2]
[336589179,1724959860074,-200.0,0.00020273,2]
[336589180,1724959860093,-500.0,0.00020273,2]
[336589181,1724959860104,-500.0,0.00020273,2]
[336589182,1724959860114,-500.0,0.00020273,2]
[336589183,1724959860124,-500.0,0.00020273,2]
[336589184,1724959860134,-500.0,0.00020273,2]
[336589185,1724959860145,-151.147523,0.00020273,2]
[336589186,1724959860155,-228.35778357,0.00020273,2]
[336589187,1724959860165,-151.0,0.00020273,2]
[336589188,1724959860176,-500.0,0.00020273,2]
[336589189,1724959860190,-500.0,0.00020273,2]
[336589190,1724959860199,-500.0,0.00020273,2]
[336589191,1724959860210,-500.0,0.00020273,2]
[336589192,1724959860220,-500.0,0.00020273,2]
[336589193,1724959860231,-500.0,0.00020273,2]
[336589194,1724959860243,-500.0,0.00020273,2]
[336589195,1724959860252,-500.0,0.00020273,2]
[336589196,1724959860262,-972.15,0.00020273,2]
[336589197,1724959860273,-559.77745385,0.00020273,2]
[336589198,1724959860284,-624.15579893,0.00020273,2]
[336589199,1724959860294,-500.0,0.00020273,2]
[336589200,1724959860303,-504.68681306,0.00020273,2]
[336589201,1724959860313,-500.0,0.00020273,2]
[336589202,1724959860324,-500.0,0.00020273,2]
[336589203,1724959860334,-500.0,0.00020273,2]
[336589204,1724959860344,-568.31,0.00020273,2]
[336589205,1724959860354,-500.0,0.00020273,2]
[336589206,1724959860365,-500.0,0.00020273,2]
[336589207,1724959860375,-568.98980665,0.00020273,2]
[336589208,1724959860385,-500.0,0.00020273,2]
[336589209,1724959860395,-500.0,0.00020273,2]
[336589210,1724959860405,-886.8,0.00020273,2]
[336589211,1724959860416,-500.0,0.00020273,2]
[336589212,1724959860426,-591.56,0.00020273,2]
[336589213,1724959860436,-500.0,0.00020273,2]
[336589214,1724959860446,-500.0,0.00020273,2]
[336589215,1724959860456,-500.0,0.00020273,2]
[336589216,1724959860466,-572.09,0.00020273,2]
[336589217,1724959860476,-507.64,0.00020273,2]
[336589218,1724959860486,-986.6,0.00020273,2]
[336589219,1724959860496,-500.0,0.00020273,2]
[336589220,1724959860506,-500.0,0.00020273,2]
[336589221,1724959860515,-500.0,0.00020273,2]
[336589222,1724959860527,-500.0,0.00020273,2]
[336589223,1724959860537,-668.17,0.00020273,2]
[336589224,1724959860547,-500.0,0.00020273,2]
[336589225,1724959860557,-1355.56,0.00020273,2]
[336589226,1724959860569,-466.18684889,0.00020273,2]
[336589227,1724959860578,-776.41,0.00020273,2]
[336589228,1724959860589,-500.0,0.00020273,2]
[336589229,1724959860601,-829.52,0.00020273,2]
[336589230,1724959860612,-579.36,0.00020273,2]
[336589231,1724959860622,-500.0,0.00020273,2]
[336589232,1724959860633,-605.81,0.00020273,2]
[336589233,1724959860643,-500.0,0.00020273,2]
[336589234,1724959860653,-836.77,0.00020273,2]
[336589235,1724959860665,-500.0,0.00020273,2]